Cogmind - Beta 16 *** ADVENTURER MODE // 2025.11.04 @ 11:37:59 Player: zxpr0jk Result: Destroyed by Y-54 Guardian with Gatling Laser Performance ------------- Evolutions (0) 0 Regions Visited (3) 600 Robots Destroyed (28) 140 Value Destroyed (710) 710 Prototype IDs (2) 40 Alien Tech Used (0) 0 Bonus (0) 0 TOTAL SCORE: 1490 Bonus ------- None Cogmind --------- Core Integrity 0/250 Matter 277/300 Energy 150/150 System Corruption 0% Temperature Cool (58) Movement Rolling (110) Location -7/Recycling Parts ------- > --- POWER (1) -------- Light Angular Momentum Engine > --- PROPULSION (2) --- Subdweller Monowheel Subdweller Monowheel > --- UTILITY (2) ------ Large Storage Unit Authchip [Propulsion] > --- WEAPON (2) ------- Beamcaster Battle Rifle > --- INVENTORY (15) --- Improved Deuterium Engine Myomer Leg Machine Analyzer Light Armor Plating Scrap Shield Authchip [R/Combat] Authchip [Device] Subdweller Laser Slug Cannon Peak State ------------ > --- POWER ------------ Light Angular Momentum Engine > --- PROPULSION ------- Subdweller Monowheel Subdweller Monowheel > --- UTILITY ---------- Large Storage Unit Authchip [Propulsion] > --- WEAPON ----------- Beamcaster Battle Rifle > --- INVENTORY -------- Improved Deuterium Engine Myomer Leg Subdweller Monowheel Subdweller Monowheel Subdweller Optics ECM Suite Light Armor Plating Light Armor Plating Scrap Shield Authchip [R/Combat] Authchip [Device] Subdweller Laser Slug Cannon Makeshift Sword [Rating: 25] Favorites ----------- Power Light Angular Momentum Engine Engine Light Angular Momentum Engine Propulsion Subdweller Monowheel Treads Light Treads Wheel Subdweller Monowheel Utility Light Armor Plating Device Tractor Beam Storage Large Storage Unit Hackware Authchip [Propulsion] Protection Light Armor Plating Weapon Assault Rifle Energy Gun Beamcaster Ballistic Gun Assault Rifle Build | -11 -10 -10 -7 ------- Run | Yrd Mat Sub Rec Slots Evolved . | . . . . Power . | . . . . Propulsion . | . . . . Utility . | . . . . Weapon . | . . . . Parts Attached 25 | 6 7 9 3 Power 2 | 1 . 1 . Engine 2 | 1 . 1 . Core . | . . . . Reactor . | . . . . Propulsion 6 | 2 . 3 1 Treads 2 | 2 . . . Leg . | . . . . Wheel 4 | . . 3 1 Hover . | . . . . Flight . | . . . . Utility 10 | 1 6 2 1 Device 2 | . 2 . . Storage 3 | 1 2 . . Processor . | . . . . Hackware 1 | . . . 1 Protection 4 | . 2 2 . Artifact . | . . . . Weapon 7 | 2 1 3 1 Energy Gun 2 | . . 1 1 Energy Cannon . | . . . . Ballistic Gun 5 | 2 1 2 . Ballistic Cannon . | . . . . Launcher . | . . . . Special Weapon . | . . . . Impact Weapon . | . . . . Slashing Weapon . | . . . . Piercing Weapon . | . . . . Special Melee Weapon . | . . . . Unidentified Prototypes . | . . . . Parts Lost 1 | . . . 1 Power . | . . . . Propulsion . | . . . . Utility . | . . . . Weapon 1 | . . . 1 Highest Loss Streak 1 | . . . 1 To Critical Strikes . | . . . . Average Backups 6 | . 2 7 10 Power . | . . . . Propulsion . | . . 1 2 Utility 3 | . 2 4 4 Weapon 1 | . . 1 2 Tool/Special . | . . . . Unused Backups 16 | . . 4 12 Power 3 | . . 2 1 Propulsion 1 | . . . 1 Utility 9 | . . 2 7 Weapon 3 | . . . 3 Tool/Special . | . . . . Average Slot Usage (%) 99 | . 98 100 100 Engine 13 | . 13 14 14 Treads 13 | . 28 6 . Wheel 14 | . . 21 28 Device 2 | . 8 . . Storage 11 | . 7 14 14 Hackware 1 | . . . 10 Protection 11 | . 11 14 3 Energy Gun 2 | . . 2 12 Ballistic Gun 25 | . 28 25 15 Peak Build Rating 25 | 6 7 18 25 Average Rating 13 | 4 6 15 23 On Entrance 7 | . 6 7 18 Avg Prop Armor Cover (%) 9 | . . 10 5 Naked Turns . | . . . . Heaviest Build 39 | 14 32 38 39 Greatest Support 40 | 40 40 40 40 Greatest Overweight (x) 1 | . . 1 1 Average Overweight (x) . | . . . . Largest Inventory Capacity 15 | 8 15 15 15 Average Capacity 12 | 6 7 15 15 Most Carried 15 | . 5 14 15 Average Carried 6 | . 2 8 11 Final Capacity 15 | 8 15 15 15 Final Carried 12 | . 5 12 10 Class Distribution -------------------- 85% | Mutant 14% | Scavenger-Mutant Dominant Class ---------------- Mutant | -10/Materials Mutant | -10/Subcaves Mutant | -7/Recycling Resources | -11 -10 -10 -7 ----------- Run | Yrd Mat Sub Rec Matter Collected 953 | 174 402 349 28 Remotely 237 | . 237 . . Salvage Created 912 | . 551 294 67 Parts 61 | . 37 19 5 Haulers Intercepted . | . . . . Recyclers Shooed 2 | . 2 . . Parts Field Recycled . | . . . . Retrieved Matter . | . . . . Parts Self-Destructed 16 | . . 16 . Prevented . | . . . . Parts Restored . | . . . . Kills | -11 -10 -10 -7 ------- Run | Yrd Mat Sub Rec Combat Hostiles Destroyed 20 | . 10 9 1 Guns 20 | . 10 9 1 Classes Destroyed 8 | . 5 2 1 Worker 2 | . 2 . . Recycler 2 | . 2 . . Turret 1 | . . 1 . Watcher 3 | . 3 . . Swarmer 6 | . 3 3 . Grunt 7 | . 7 . . Sentry 1 | . . . 1 Subdweller 6 | . . 6 . Best Kill Streak 8 | . 8 3 1 Combat Bots Only 5 | . 5 3 1 Max Kills in Single Turn 1 | . 1 1 1 Gunslinging . | . . . . Exploded . | . . . . Melee . | . . . . Uniques/NPCs Destroyed . | . . . . Combat | -11 -10 -10 -7 -------- Run | Yrd Mat Sub Rec Hostile Shots Fired 160 | . 59 62 39 Missed 31 | . 12 17 2 Hits 129 | . 47 45 37 Projectile 129 | . 47 45 37 Damage Taken 1182 | . 409 566 207 Core 254 | . 61 153 40 Absorbed by Shields . | . . . . Ignored by Resistances 368 | . 130 165 73 Regen/Repaired (Parts) 22 | . 22 . . Core Remaining (%) 100 | 100 . . . Volleys Fired 90 | . 46 40 4 Largest 2 | . 2 2 2 Hottest 100 | . 40 55 100 Shots Fired 180 | . 92 80 8 Gun 180 | . 92 80 8 Cannon . | . . . . Launcher . | . . . . Special . | . . . . Kinetic 178 | . 92 80 6 Thermal 2 | . . . 2 Explosive . | . . . . Electromagnetic . | . . . . Robot Hit Streak 28 | . 16 28 11 Robot Miss Streak 3 | . 3 1 . Penetration Max . | . . . . Secondary Targets 4 | . 2 2 . Max Gunslinging Chain 1 | . 1 1 . Shots Hit Robots 145 | . 64 73 8 Core Hits 53 | . 28 22 3 Critical Kills . | . . . . Critical Parts Destroyed 2 | . . 2 . Critical Strikes 2 | . . 2 . Destroy 2 | . . 2 . Melee Attacks . | . . . . Impact . | . . . . Slashing . | . . . . Piercing . | . . . . Sneak Attacks . | . . . . Combat Hostiles . | . . . . Follow-up Attacks . | . . . . Damage Inflicted 2100 | . 868 1089 143 Guns 2100 | . 868 1089 143 Cannons . | . . . . Explosions . | . . . . Melee . | . . . . Ramming . | . . . . Kinetic 2058 | . 868 1089 101 Thermal 42 | . . . 42 Explosive . | . . . . Electromagnetic . | . . . . Impact . | . . . . Slashing . | . . . . Piercing . | . . . . Highest Corruption . | . . . . Average Corruption . | . . . . Corruption Purged . | . . . . Corruption Blocked . | . . . . Overload Shots . | . . . . Overflow Damage . | . . . . Projectiles . | . . . . Explosions . | . . . . Melee . | . . . . Knockbacks . | . . . . Impact . | . . . . Kinetic . | . . . . Secondary . | . . . . Self-Inflicted Damage . | . . . . Shots . | . . . . Rammed . | . . . . Targets Rammed . | . . . . Kicked . | . . . . Crushed . | . . . . Highest Temperature 112 | . 13 10 112 Average Temperature 19 | . 4 5 47 Received Heat Transfer 444 | . 240 120 84 Siege Activations . | . . . . Martial Activations . | . . . . Shielding Activations . | . . . . Robots Disrupted . | . . . . Combat Hostiles . | . . . . Robots Corrupted . | . . . . Combat Hostiles . | . . . . Parts Fried . | . . . . Impact Corruptions . | . . . . Robots Melted . | . . . . Combat Hostiles . | . . . . Parts Melted . | . . . . Heat Transferred 74 | . . . 74 Parts Sabotaged . | . . . . Parts Stolen . | . . . . Parts Stripped . | . . . . Power Chain Reactions . | . . . . Alert | -11 -10 -10 -7 ------- Run | Yrd Mat Sub Rec Maximum Alert Level . | . . . . Low Security (%) 100 | 100 100 . 100 Level 1 . | . . . . Level 2 . | . . . . Level 3 . | . . . . Level 4 . | . . . . Level 5 . | . . . . High Security . | . . . . Max Security . | . . . . Peak Influence 110 | . 110 . 20 Initial . | . . . . Average 17 | . 24 . 2 Influence Increases 551 | . 319 155 77 Destroy 0b10 Robot/C 300 | . 200 80 20 Destroy 0b10 Robot/NC 35 | . 35 . . Destroy Leader 46 | . 46 . . Successful Hack 80 | . 23 . 57 Lose Combat Pursuer 90 | . 15 75 . Influence Decreases 551 | . 319 155 77 Time Decay 551 | . 319 155 77 Squads Dispatched 1 | . 1 . . Investigation 1 | . 1 . . Extermination . | . . . . Reinforcement . | . . . . Assault . | . . . . Garrison . | . . . . Intercept . | . . . . Searches Triggered . | . . . . Construction Impeded . | . . . . Haulers Reinforced . | . . . . Active Scanning Responses . | . . . . Cargo Convoy Interrupts . | . . . . Stealth | -11 -10 -10 -7 --------- Run | Yrd Mat Sub Rec Distress Signals . | . . . . Communications Jammed . | . . . . Distress Signals . | . . . . Times Spotted 46 | . 17 27 2 Peak Tracking Total 6 | . 6 6 1 Tactical Retreats 6 | . 1 5 . Traps | -11 -10 -10 -7 ------- Run | Yrd Mat Sub Rec Traps Triggered 2 | . 1 1 . Indirectly . | . . . . Trap Hack Attempts . | . . . . Triggered . | . . . . Disarmed . | . . . . Reprogrammed . | . . . . Reused . | . . . . Traps Extracted . | . . . . Installed . | . . . . Triggered . | . . . . Machines | -11 -10 -10 -7 ---------- Run | Yrd Mat Sub Rec Machines Disabled 1 | . . 1 . Max in Single Turn 1 | . . 1 . Machines Repaired . | . . . . Machines Dismantled . | . . . . Machines Sabotaged . | . . . . Overloaded Fab Kills . | . . . . Hacking | -11 -10 -10 -7 --------- Run | Yrd Mat Sub Rec Machines Accessed 18 | . 9 1 8 Terminals 12 | . 7 . 5 Fabricators . | . . . . Repair Stations 1 | . 1 . . Recycling Units 4 | . 1 . 3 Scanalyzers . | . . . . Garrison Access . | . . . . Total Hacks 61 | . 34 5 22 Successful 47 | . 27 5 15 Failed 14 | . 7 . 7 Catastrophic . | . . . . Database Lockouts . | . . . . Manual 42 | . 24 1 17 Terminals 45 | . 30 . 15 Fabricators . | . . . . Repair Stations 2 | . 2 . . Recycling Units 9 | . 2 . 7 Scanalyzers . | . . . . Garrison Access . | . . . . Terminal Hacks 14 | . 7 5 2 Record 5 | . . 5 . Prototype ID Bank 1 | . . . 1 Emergency Access Points 1 | . 1 . . Locate Traps 3 | . 3 . . Recall Investigation 1 | . 1 . . Zone Layout 3 | . 2 . 1 Fabricator Hacks . | . . . . Repair Station Hacks 2 | . 2 . . Scan Component 1 | . 1 . . Repair 1 | . 1 . . Recycling Unit Hacks 4 | . 1 . 3 Report Inventory 4 | . 1 . 3 Scanalyzer . | . . . . Garrison Access Hacks . | . . . . Unauthorized Hacks 27 | . 17 . 10 Terminals 24 | . 17 . 7 Assimilate 6 | . 5 . 1 Botnet 7 | . 5 . 2 Skim 11 | . 7 . 4 Fabricators . | . . . . Repair Stations . | . . . . Recycling Units 3 | . . . 3 Recyclers 1 | . . . 1 Mask 2 | . . . 2 Scanalyzers . | . . . . Garrison Access . | . . . . Data Cores Recovered . | . . . . Used . | . . . . Hacking Detections 14 | . 7 . 7 Full Trace Events . | . . . . Feedback Events . | . . . . Feedback Blocked . | . . . . Robot Schematics Acquired . | . . . . Robots Built . | . . . . Authchips . | . . . . Time . | . . . . Total Robot Build Rating . | . . . . Part Schematics Acquired . | . . . . Parts Built . | . . . . Authchips . | . . . . Time . | . . . . Total Part Build Rating . | . . . . Part Studies Acquired . | . . . . Parts Repaired 1 | . 1 . . Time 26 | . 26 . . Parts Recycled . | . . . . Recycled Matter . | . . . . Retrieved Matter . | . . . . Retrieved Components . | . . . . Parts Scanalyzed . | . . . . Part Schematics Acquired . | . . . . Parts Damaged . | . . . . Bothacking | -11 -10 -10 -7 ------------ Run | Yrd Mat Sub Rec Used RIF Installer . | . . . . Robots Hacked . | . . . . Non-combat . | . . . . Combat . | . . . . Robot Hacks Applied . | . . . . Relay Couplers Released . | . . . . Fabnet Peak Effective % . | . . . . Robots Rewired . | . . . . Allies Hacked . | . . . . Hacks Repelled . | . . . . Allies | -11 -10 -10 -7 -------- Run | Yrd Mat Sub Rec Total Allies . | . . . . Largest Group . | . . . . Highest-Rated Group . | . . . . Highest-Rated Ally . | . . . . Total Orders . | . . . . Ally Attacks . | . . . . Total Damage . | . . . . Kills . | . . . . Allies Corrupted . | . . . . Allies Melted . | . . . . Intel | -11 -10 -10 -7 ------- Run | Yrd Mat Sub Rec Active Infowar (turns) . | . . . . Robot Analysis Total . | . . . . Derelict Logs Recovered 2 | . . 2 . Drone Launches . | . . . . Drone Recoveries . | . . . . Exploration | -11 -10 -10 -7 ------------- Run | Yrd Mat Sub Rec Turns Passed 3867 | 74 1311 1966 516 Spaces Moved 2709 | 44 695 1532 438 Core 4 | 4 . . . Treads 947 | 40 695 212 . Legs . | . . . . Wheels 1758 | . . 1320 438 Hover . | . . . . Flight . | . . . . Fastest Speed 50 | 50 160 110 110 Average Speed 127 | 150 160 117 110 Slowest Speed 160 | 160 160 160 120 Overloaded Moves . | . . . . Propulsion Burnouts . | . . . . Robots Hopped . | . . . . Potential Cave-ins . | . . . . Cave-ins Triggered . | . . . . Exploration Rate (%) 67 | 4 97 82 86 Regions Visited 3 Branch Regions 2 Pre-discovered Areas 4 | . 1 3 . Known Exits Taken 2 | . 1 1 . Unknown Exits Taken 1 | 1 . . . Scrap Searched 5 | . . 5 . Spaces Dug . | . . . . Terrain Destroyed . | . . . . Melee . | . . . . Projectile . | . . . . AOE . | . . . . Terrain Rammed . | . . . . Walls Destroyed . | . . . . Machines Disabled . | . . . . Actions | -11 -10 -10 -7 --------- Run | Yrd Mat Sub Rec Total 2945 | 49 802 1629 465 Wait 59 | . 40 14 5 Move 2706 | 43 694 1531 438 Hop . | . . . . Pick Up 27 | . 6 17 4 Fast Attach 11 | 6 4 . 1 Attach 1 | . . . 1 Detach 3 | . 2 . 1 Swap 15 | . 4 9 2 Drop 26 | . 6 14 6 Fire 90 | . 46 40 4 Melee . | . . . . Ram . | . . . . Kick . | . . . . Crush . | . . . . Escape Stasis . | . . . . Rewire 7 | . . 4 3 Trap . | . . . . Miscellaneous . | . . . . Route ------- -11/Scrapyard -10/Materials (discovered 5 exits: *Mat x3 / [*Min] / *Sub) -10/Subcaves (discovered 3 exits: *Mat x2 / *Rec) -7/Recycling History --------- Turn | Location | Event 7 | -11/Scrapyard | Discovered new exit (range 14) 75 | -11/Scrapyard | Entered Materials 208 | -10/Materials | Discovered new exit (range 14) 315 | -10/Materials | Build established: Mutant 344 | -10/Materials | Discovered new exit (range 7) 408 | -10/Materials | Discovered new exit (range 15) 519 | -10/Materials | Learned location of Storage (-7) 551 | -10/Materials | Repaired Ion Engine 595 | -10/Materials | Identified exit to Materials 595 | -10/Materials | Identified exit to Subcaves 595 | -10/Materials | Learned location of 1 exit from Materials 661 | -10/Materials | Learned location of 2 exits from Subcaves 813 | -10/Materials | Learned 2 Mines zone layouts 1386 | -10/Materials | Entered Subcaves 1387 | -10/Subcaves | Identified exit to Materials 1387 | -10/Subcaves | Identified exit to Recycling 1581 | -10/Subcaves | Ambushed by swarm of Subdwellers 1632 | -10/Subcaves | Lost 3 allies 1944 | -10/Subcaves | Shifting Twisted Machinery released Battle Rifle 1976 | -10/Subcaves | A swath of the cavern ceiling suddenly collapsed 1978 | -10/Subcaves | Shifting Twisted Machinery released Battle Cannon 2039 | -10/Subcaves | Learned Materials security intel 2040 | -10/Subcaves | Visited Clippyterm 2044 | -10/Subcaves | Learned location of Deep Caves (-7) 2145 | -10/Subcaves | Build established: Scavenger-Mutant 2225 | -10/Subcaves | Core integrity fell below 50% 2587 | -10/Subcaves | Learned location of Zion (-7) 2587 | -10/Subcaves | Met a Zionite searching for "candidates" 2697 | -10/Subcaves | Build established: Mutant 2898 | -10/Subcaves | Disturbed a concealed Subdweller 3019 | -10/Subcaves | Core integrity fell below 20% 3352 | -10/Subcaves | Entered Recycling 3353 | -7/Recycling | Met a Zionite searching for Scraptown 3868 | -7/Recycling | Destroyed by Y-54 Guardian with Gatling Laser Last Messages --------------- Matter reserves: 0 Inventory: Imp. Titanium Leg (66%) 03763_ Sub. Monowheel shoots sparks and powers down. 03768_ Connecting with Terminal... >>Trojan(Skim) Trojan loaded successfully. Testing... Terminal linked with 3 systems. Please expand to 1 more system! >>Trojan(Botnet) Trojan loaded successfully. Testing... Terminal linked with 1 system. Awaiting botnet instructions. 03770_ Dropped Broken Sub. Monowheel. 03776_ R-06 Scavenger collects Broken Sub. Monowheel. 03846_ Sub. Monowheel shoots sparks and powers down. 03852_ Dropped Broken Sub. Monowheel. 03857_ R-06 Scavenger collects Broken Sub. Monowheel. Map ----- +----------------------------------------------------+ | ############?????????????????????????????? | | """ """#?????????#####???????????????????????? | | """ Y"########### #???????????????????????? | | # """ """## # #???????????????????????? | | # ##### # #???????????????????????? | | # + # #???????????????????????? | | ####### # #???????????????????????? | | #?????# + #???????????????????????? | | #######?????# # #???????????????????????? | | #???????????# # #???????????????????????? | | #???????????# # #???????????????????????? | | #######?????# # #???????????????????????? | | #??# ## ##### #???????????????????????? | | #??######???# #???????????????????????? | | #???????????# % #???????????????????????? | | #???????????# #???????????????????????? | | #?##????????# #?####??????????????????? | | ????????# #?"""#??????????????????? | | ###### ##### ????????# ##"Y"#####??????????????? | | #??######### ######### +??????????????? | | #??# # #???????????????? | | #??# # #???????????????? | | #??# # """ """ #???????????????? | | #### # """ """ #???????????????? | | + # """ """ #???????????????? | | #### # r@ #???????????????? | | #??# + #Y####+##???????????????? | | #??# # """ """ ###?????????????????????? | | #??# # """ """ #???????????????????????? | | ##?# #r """ """ #???????????????????????? | | #?# / r #???????????????????????? | | #?# # #???????????????????????? | | #?# #####+#########???????????????????????? | | #?# #?# #?????????????????????????? | | #?# #?# #?????????????????????????? | | #?# #?# #?????????????????????????? | | ### #?# #?????????????????????????? | | ""# #?# #?????????????????????????? | | Y"# #?# #?????????????????????????? | | ""# #?# ##????????????????????????? | | ### #?# #????????????????????????? | | #?####### #?############????????????????????????? | | #????###?##?????????????????????????????????????? | | r###### #######??????????????????????????????????? | | # #??????????????????????????????????? | | # #??????????????????????????????????? | | # #??????????????????????????????????? | | # #??????????????????????????????????? | | + #??????????????????????????????????? | | # #??????????????????????????????????? | +----------------------------------------------------+ Best States ------------- Heat Dissipation 35 Energy Generation 18 Energy Capacity 250 Matter Stores 300 Matter Capacity 300 Sight Range 16 Terrain Scan Density 10 Armor Coverage 150 Resistance: KI 20 Resistance: TH 20 Resistance: EX 20 Resistance: EM 20 Resistance: I 20 Resistance: S 20 Resistance: P 20 Evasion (%) 40 Recoil Reduction 2 Offensive Hacking 10 Authchip Count 3 Item Schematics ----------------- None Robot Schematics ------------------ None Fabricated ------------ Nothing Repaired ---------- Ion Engine | 63% | -10/Materials Studied --------- None Alien Tech Used ----------------- None Achievements -------------- None Challenges ------------ None Game ------ Seed SixShrapnelWheel Manual? 0 Play Time 00:40:44 Cumulative 53.7 hours Start 2025.11.04 @ 10:54:07 End 2025.11.04 @ 11:37:59 Sessions 1 Manual Loads 0 Difficulty Adventurer Special Mode None Game No. 39 Rogue 13 Adventurer 26 Explorer 0 Win Type - Total 0 Types 0/0/0/0/0/0/0/0/0/0 Lore% 19 Gallery% 31 Achievement% 23 Wizard Run 0 Options --------- Layout 0 ASCII 0 Keyboard 1 Movement Numpad Keybinds 0 Fullscreen 2 Font 18/X11 Map View 76x50 Zoom Use 0% Tactical HUD 1 Map Filters NONE Filters NONE Steam 1 RUN: 433ea122-e36c-45bc-9539-d3fc891f72d5